fUSD/lending_fUSD_20250407
["ID","MTS","AMOUNT","RATE_DAILY","PERIOD"]
[357292003,1743988231594,-1437.4168,0.000199,2]
[357292004,1743988231603,-1301.6084,0.000199,2]
[357292005,1743988231613,-8487.1456,0.000199,2]
[357292006,1743988231622,-441.35781014,0.000199,2]
[357292007,1743988231632,-2000.0,0.000199,7]
[357292008,1743988231641,-632.64522233,0.000199,2]
[357292009,1743988231651,-1000.0,0.000199,2]
[357292010,1743988231661,-3139.28535145,0.000199,2]
[357292011,1743988231681,-1682.17841262,0.000199,2]
[357292012,1743988231695,-1050.0,0.000199,2]
[357292013,1743988231708,-2984.68835695,0.000199,2]
[357292014,1743988231718,-300.73728937,0.000199,2]
[357292053,1743988237354,-2199.26271063,0.000199,2]
[357292054,1743988237364,-5880.35694164,0.000199,2]
[357292055,1743988237376,-8409.68886546,0.000199,2]
[357292056,1743988237410,-628.0812623,0.000199,2]
[357292057,1743988237422,-33115.17824134,0.000199,2]
[357292058,1743988237433,-3242.56813772,0.000199,2]
[357292059,1743988237446,-3110.01716113,0.000199,2]
[357292060,1743988237457,-2048.003565,0.000199,2]
[357292061,1743988237468,-4059.62035122,0.000199,2]
[357292062,1743988237479,-1795.08269747,0.000199,2]
[357292063,1743988237491,-1052.48092044,0.000199,2]
[357292064,1743988237506,-783.33,0.000199,2]
[357292065,1743988237517,-2220.78525628,0.000199,2]
[357292066,1743988237528,-779.04819995,0.00019918,2]
[357292067,1743988237543,-363.50002513,0.00019918,2]
[357292068,1743988237584,-1301.18066778,0.00019918,2]
[357292069,1743988237641,-577.31165299,0.00019918,2]
[357292070,1743988237653,-6703.95945415,0.00019918,2]
[357292071,1743988237662,-4993.63521071,0.0001999,2]
[357292072,1743988237672,-13442.02669299,0.0002,2]
[357292073,1743988237704,-4688.42003455,0.0002,2]
[357292092,1743988239524,-197.9188297,0.000199,2]
[357292093,1743988239538,-3981225.22185201,0.0002,2]
[357292094,1743988239548,-40740.14093535,0.0002,2]
[357292095,1743988239557,-10343.56216848,0.0002,2]
[357292096,1743988239567,-85453.45912904,0.0002,4]
[357292097,1743988239577,-1502.43259645,0.0002,4]
[357292098,1743988239588,-751.60025321,0.0002,2]
[357292099,1743988239597,-26026.61285,0.0002,2]
[357292100,1743988239608,-186.62978267,0.0002,2]
[357292101,1743988239618,-200.83913366,0.0002,2]
[357292102,1743988239627,-151.3,0.0002,2]
[357292103,1743988239636,-151.3,0.0002,2]
[357292104,1743988239645,-151.3,0.0002,2]
[357292105,1743988239655,-151.3,0.0002,2]
[357292106,1743988239664,-151.3,0.0002,2]
[357292107,1743988239674,-151.3,0.0002,2]
[357292108,1743988239683,-151.3,0.0002,2]
[357292109,1743988239692,-151.3,0.0002,2]
[357292110,1743988239703,-500.0,0.00020595,2]
[357292111,1743988239712,-300.0,0.00021,2]
[357292112,1743988239722,-250.0,0.00021105,2]
[357292113,1743988239731,-589.06,0.0002145,2]
[357292114,1743988239741,-200.0,0.00021665,2]
[357292115,1743988239750,-200.0,0.0002167,7]
[357292116,1743988239759,-206.98,0.00021709,2]
[357292117,1743988239768,-1635.72,0.00021806,2]
[357292118,1743988239777,-23900.0,0.00021913,2]
[357292119,1743988239787,-150.0,0.00021917,2]
[357292120,1743988239795,-200.0,0.00021918,7]
[357292121,1743988239803,-778.15,0.00021969,2]
[357292122,1743988239811,-200.0,0.00021969,2]
[357292123,1743988239819,-191.54,0.00021977,2]
[357292124,1743988239827,-350.0,0.00023,2]
[357292125,1743988239836,-441.35781007,0.000231,2]
[357292126,1743988239845,-150.0,0.00023287,2]
[357292127,1743988239853,-171.95,0.000236,2]
[357292128,1743988239862,-589.06,0.00023714,2]
[357292129,1743988239870,-220.22,0.00023836,2]
[357292130,1743988239878,-855.29224355,0.00024365,2]
[357292131,1743988239887,-150.0,0.00024657,2]
[357292132,1743988239895,-142861.85033553,0.000248,2]
[357292133,1743988239916,-776.33276383,0.000248,2]
[357292134,1743988239925,-1672.66419446,0.000248,2]
[357292135,1743988239935,-784.10834937,0.000248,2]
[357292136,1743988239968,-31633.67996175,0.000248,2]
[357292225,1743988243102,-263.44608735,0.000195,2]
[357292226,1743988243110,-38.22559665,0.000248,2]
[357292227,1743988243135,-1.97563882,0.000248,2]
[357292228,1743988245520,-197.91882968,0.00022136,2]
[357292229,1743988245532,-7636.44960219,0.000248,2]
[357292230,1743988245686,-836.42,0.000248,2]
[357292231,1743988245698,-88518.83922699,0.000248,2]
[357292232,1743988245748,-5553.0,0.000248,2]
[357292252,1743988389424,1000.0,0.00039472,60]
[357292253,1743988402936,1000.0,0.00039472,120]
[357292254,1743988416435,1000.0,0.00039472,30]
[357292255,1743988429799,1000.0,0.00039472,60]
[357292257,1743988443390,1000.0,0.00039472,30]
[357292258,1743988446191,1414.81994857,0.00039472,60]
[357292259,1743988457054,1000.0,0.00039472,30]
[357292260,1743988470797,1000.0,0.00039472,30]
[357292261,1743988484188,1000.0,0.00039472,60]
[357292262,1743988497721,1000.0,0.00039472,30]
[357292263,1743988518751,2000.0,0.00039472,30]
[357292265,1743989056336,103.34,0.00032979,120]
[357292266,1743989056361,198.33,0.00032979,120]
[357292267,1743989056422,0.75,0.00032979,120]
[357292277,1743989284613,100000.0,0.00015,2]
[357292278,1743989284639,2000.0,0.00015,2]
[357292279,1743989284662,2000.0,0.00015,2]
[357292280,1743989284684,2000.0,0.00015,2]
[357292281,1743989284707,2000.0,0.00015,2]
[357292282,1743989284729,2000.0,0.00015,2]
[357292283,1743989284751,2000.0,0.00015,2]
[357292284,1743989284774,2000.0,0.00015,2]
[357292285,1743989284797,2000.0,0.00015,2]
[357292286,1743989284819,2000.0,0.00015,2]
[357292287,1743989284842,2000.0,0.00015,2]
[357292288,1743989284866,2000.0,0.00015,2]
[357292289,1743989284899,39843.46180722,0.00015,2]
[357292290,1743989284924,50000.0,0.00015,2]
[357292291,1743989284951,50000.0,0.00015,2]
[357292292,1743989284978,50000.0,0.00015,2]
[357292293,1743989285004,50000.0,0.00015,2]
[357292294,1743989285031,50000.0,0.00015,2]
[357292295,1743989290994,210.3514432,9.5e-05,2]
[357292297,1743989319745,215.69529564,0.0001,2]
[357292298,1743989319795,97800.54069077,0.00039459,60]
[357292300,1743989327313,303.90920009,0.00015,5]
[357292306,1743989328306,-167.524954,0.00014925,2]
[357292307,1743989342738,-241.59981435,0.00014999,2]
[357292308,1743989344405,-58.40018565,0.00014999,2]
[357292309,1743989344429,-121.59981435,0.00015,2]
[357292310,1743989346964,-1161.30621909,0.00015,2]
[357292311,1743989350647,-50000.0,0.00015,2]
[357292312,1743989351336,-200.3,0.00015,2]
[357292313,1743989351456,-50000.0,0.00015,2]
[357292314,1743989352204,-50000.0,0.00015,2]
[357292315,1743989353024,-50000.0,0.00015,2]
[357292316,1743989354022,-50000.0,0.00015,2]
[357292317,1743989354807,-200.3,0.00015,2]
[357292318,1743989355733,-50000.0,0.00015,2]
[357292320,1743989365955,-50000.0,0.00015,2]
[357292321,1743989366814,-50000.0,0.00015,2]
[357292322,1743989367670,-50000.0,0.00015,2]
[357292323,1743989370488,-50000.0,0.00015,2]
[357292324,1743989371039,-9904.44079415,0.00015,2]
[357292325,1743989371099,-9904.44079415,0.00015,2]
[357292326,1743989371154,-1706.92166002,0.00015,2]
[357292328,1743989371462,-50000.0,0.00015,2]
[357292329,1743989396275,-10334.75685912,0.00015,2]
[357292330,1743989396310,-10334.75685912,0.00015,2]
[357292331,1743989396579,-551.96886058,0.00015,2]
[357292332,1743989399827,1719.06513996,0.00014999,5]
[357292333,1743989412630,-250.0,0.0001499,2]
[357292336,1743989431786,-357.07158016,0.00014999,2]
[357292338,1743989431796,-307.96646617,0.00014999,2]
[357292340,1743989431806,-150.0,0.00014999,2]
[357292341,1743989431816,-300.0,0.00014999,2]
[357292342,1743989431826,-192756.78355367,0.00015,2]
[357292886,1743989437845,-36942.51873346,0.00015,2]
[357292888,1743989437857,-369.50775994,0.00015,2]
[357292890,1743989437868,-1103.565853,0.00015,2]
[357292893,1743989437882,-71066.18881313,0.00015,2]
[357292895,1743989437901,-599685.951538,0.00015,2]
[357292897,1743989437916,-250.0,0.00015658,2]
[357292899,1743989437926,-255.0,0.00016124,2]
[357292901,1743989437936,-1177.67333474,0.00016216,2]
[357292903,1743989437945,-2865.19966707,0.00016316,2]
[357292905,1743989437956,-308.0,0.00016416,2]
[357292907,1743989437966,-250.0,0.000165,2]
[357292909,1743989437975,-1177.67333469,0.00016625,2]
[357292911,1743989437985,-1177.67333469,0.00017035,2]
[357292913,1743989437996,-1177.67333469,0.00017444,2]
[357292915,1743989438006,-1177.67333469,0.00017853,2]
[357292917,1743989438016,-1177.67333469,0.00018263,2]
[357292919,1743989438026,-250.0,0.00019,2]
[357292921,1743989438036,-1182.38936097,0.0001989,2]
[357292923,1743989438046,-66345.1934,0.000199,2]
[357292925,1743989438055,-1658.3533,0.000199,2]
[357292927,1743989438064,-5065.15770219,0.000199,2]
[357292929,1743989438073,-191.24265279,0.000199,3]
[357292931,1743989438082,-421.76348156,0.000199,2]
[357292933,1743989438091,-2378.2337,0.000199,2]
[357292935,1743989438101,-15548.60685369,0.00019999,2]
[357292937,1743989438110,-275986.64108901,0.0002,2]
[357292945,1743989438182,-12500.20086622,0.0002,2]
[357292947,1743989438194,-95876.58008594,0.0002,2]
[357292949,1743989438205,-152046.66073035,0.0002,2]
[357292951,1743989438216,-1255.6926888,0.0002,2]
[357292954,1743989438227,-3272.795,0.0002,2]
[357292956,1743989438240,-876.49937008,0.0002,2]
[357292958,1743989438251,-1237.30876027,0.0002,2]
[357292960,1743989438264,-304.26106665,0.0002,2]
[357292964,1743989438292,-2072.95149155,0.0002,2]
[357293107,1743989439864,-1411.74615854,0.0002,2]
[357293109,1743989439876,-3158.48424365,0.0002,2]
[357293111,1743989439887,-318.416,0.0002,2]
[357293113,1743989439899,-273.94344909,0.0002,2]
[357293115,1743989439913,-1068.85270676,0.0002,2]
[357293124,1743989439984,-20321.14984416,0.0002,2]
[357293126,1743989439995,-12769.21014695,0.0002,2]
[357293128,1743989440006,-1781.137005,0.0002,2]
[357293130,1743989440018,-1363.68834929,0.0002,2]
[357293132,1743989440029,-4592.27815191,0.0002,2]
[357293134,1743989440040,-1814.74099537,0.0002,2]
[357293137,1743989440051,-2902.29292692,0.0002,2]
[357293139,1743989440062,-11642.34725264,0.0002,2]
[357293141,1743989440074,-31820.16397684,0.0002,2]
[357293143,1743989440085,-13712.42692854,0.0002,2]
[357293147,1743989440118,-4323757.83916034,0.0002,2]
[357293150,1743989440129,-113554.89344581,0.0002,2]
[357293175,1743989440359,-820.16756879,0.0002,2]
[357293177,1743989440371,-607.36,0.0002,2]
[357293452,1743989442806,-1177.67333469,0.00018672,2]
[357293454,1743989442816,-894.65395877,0.0002,2]
[357293473,1743989443072,-2364.83486285,0.0002,2]
[357293475,1743989443084,-7959.31413102,0.0002,2]
[357293478,1743989443095,-3855.05196535,0.0002,2]
[357293480,1743989443107,-547.7903563,0.0002,2]
[357293524,1743989443474,-800.97413474,0.0002,2]
[357293527,1743989443485,-658.37860201,0.0002,2]
[357293726,1743989445828,-5379.014799,0.0002,2]
[357293728,1743989445841,-353.77550006,0.0002,2]
[357293738,1743989445970,-8460.44708326,0.0002,2]
[357293757,1743989446183,-315545.31338059,0.0002,2]
[357293760,1743989446196,-7346.75285631,0.0002,2]
[357293762,1743989446207,-31534.6935938,0.0002,2]
[357293763,1743989446271,-4418.42374257,0.0002,2]
[357294769,1743989560013,63687.0,0.00039459,30]
[357294770,1743989648033,152.18399927,0.00039494,60]
[357294771,1743989805827,2284.59160899,0.00039494,120]
[357294773,1743990093714,277.21,0.00032932,120]
[357294774,1743990249473,2000.0,0.00039444,60]
[357294775,1743990278356,500.00000001,0.00039444,120]
[357294776,1743990332493,875.88098251,0.00039444,30]
[357294777,1743990396612,-200.0,0.00019859,7]
[357294784,1743990617225,-1000.0,0.000196,7]
[357294785,1743990631969,-250.0,0.00019,2]
[357294786,1743990631979,-591.36,0.00019081,2]
[357294787,1743990631989,-8.12,0.00019165,2]
[357294788,1743990632243,-178.86,0.00019165,2]
[357294789,1743990632253,-250.0,0.0001924,2]
[357294790,1743990632263,-169.9,0.0001931,2]
[357294791,1743990632273,-1635.72,0.00019463,2]
[357294792,1743990632282,-1852.42,0.0001957,2]
[357294793,1743990632292,-1000.0,0.00019574,2]
[357294794,1743990632303,-4163.099995,0.000196,7]
[357294941,1743990637889,-236.900005,0.000196,7]
[357294942,1743990637900,-160.497191,0.000197,2]
[357294985,1743990640270,-594.96847343,0.000197,2]
[357294995,1743990643083,-9.52233557,0.000197,2]
[357294996,1743990643093,-2877.54468509,0.000197,7]
[357295022,1743990646085,-3008.90681226,0.000197,7]
[357295054,1743990650071,-2000.0,0.000197,7]
[357295057,1743990969616,217.71085759,0.000197,23]
[357295058,1743991005418,1905.0,0.00039444,33]
[357295059,1743991040460,-500.0,0.000197,7]
[357295060,1743991051609,-500.0,0.000197,7]
[357295061,1743991081211,-560.0,0.0001766,2]
[357295062,1743991203945,-200.0,0.00018791,7]
[357295063,1743991233525,271.69,0.00032932,120]
[357295065,1743991418338,-1000.0,0.000197,7]
[357295066,1743991519762,2000.0,0.00039445,60]
[357295087,1743991644408,2000.0,0.00039445,60]
[357295093,1743991832235,-1.79,0.0001766,2]
[357295094,1743991832245,-841.88775087,0.00018081,2]
[357295095,1743991832362,-186.61826727,0.00018081,2]
[357295096,1743991832372,-230.80940897,0.00018094,2]
[357295097,1743991832382,-200.0,0.00018109,2]
[357295098,1743991832392,-285.81521365,0.00018112,2]
[357295169,1743991837984,-214.18478635,0.00018112,2]
[357295170,1743991837995,-150.0,0.00018115,2]
[357295171,1743991838004,-204.8,0.00018152,2]
[357295172,1743991838014,-2884.61341265,0.0001818,2]
[357295173,1743991838025,-2920.0991605,0.0001818,2]
[357295174,1743991838037,-416.895,0.0001818,2]
[357295175,1743991838050,-4737.36242685,0.0001818,2]
[357295176,1743991838060,-2158.19,0.00018181,2]
[357295177,1743991838070,-1566.83390569,0.00018194,2]
[357295178,1743991838082,-4200.0,0.00018194,2]
[357295179,1743991838093,-692.74999987,0.00018194,2]
[357295180,1743991838172,-1404.95453833,0.00018194,2]
[357295200,1743991840435,-749.78964784,0.00018194,2]
[357295228,1743991843085,-467.94190827,0.00018194,2]
[357295229,1743991843096,-230.80940895,0.00018463,2]
[357295230,1743991843105,-194.78,0.00018679,2]
[357295231,1743991843115,-150.51,0.0001868,3]
[357295232,1743991843125,-194.78,0.00018684,2]
[357295233,1743991843135,-194.78,0.00018689,2]
[357295234,1743991843144,-194.78,0.00018694,2]
[357295235,1743991843154,-194.78,0.00018699,2]
[357295236,1743991843164,-194.78,0.00018704,2]
[357295237,1743991843174,-194.78,0.00018709,2]
[357295238,1743991843183,-194.78,0.00018713,2]
[357295239,1743991843192,-250.0,0.00018718,2]
[357295240,1743991843202,-1000.0,0.00018718,2]
[357295241,1743991843212,-194.78,0.00018718,2]
[357295242,1743991843221,-194.78,0.00018723,2]
[357295243,1743991843230,-194.78,0.00018728,2]
[357295244,1743991843240,-194.78,0.00018733,2]
[357295245,1743991843249,-194.78,0.00018738,2]
[357295246,1743991843259,-194.78,0.00018743,2]
[357295247,1743991843268,-194.78,0.00018748,2]
[357295248,1743991843277,-194.78,0.00018753,2]
[357295249,1743991843286,-194.78,0.00018758,2]
[357295250,1743991843296,-194.78,0.00018762,2]
[357295251,1743991843305,-194.78,0.00018767,2]
[357295252,1743991843315,-194.78,0.00018772,2]
[357295253,1743991843324,-230.80940895,0.00018832,2]
[357295254,1743991843333,-4534.67,0.00018858,2]
[357295255,1743991843343,-2000.0,0.0001886,2]
[357295256,1743991843354,-246.18489066,0.00018893,2]
[357295257,1743991843364,-4768.42945498,0.00018894,2]
[357295258,1743991843374,-23900.0,0.00018904,2]
[357295259,1743991843384,-200.0,0.00018932,2]
[357295260,1743991843395,-179.71,0.0001895,2]
[357295261,1743991843404,-1470.49,0.0001912,2]
[357295262,1743991843419,-1734.12,0.00019196,2]
[357295263,1743991843428,-308.49794944,0.00019227,2]
[357295264,1743991843437,-1019.21,0.00019253,2]
[357295265,1743991843447,-250.0,0.00019426,2]
[357295266,1743991843456,-250.0,0.00019426,2]
[357295267,1743991843466,-250.0,0.00019426,2]
[357295268,1743991843475,-4700.0,0.000196,7]
[357295269,1743991843485,-224.1887,0.000197,2]
[357295271,1743991843494,-303.8687,0.000197,2]
[357295272,1743991843503,-9500.0,0.000197,7]
[357295273,1743991843512,-1350.4642,0.000197,2]
[357295274,1743991843525,-752.95187112,0.00019776,2]
[357295275,1743991843534,-1005.5565,0.00019776,2]
[357295276,1743991843544,-268.6891,0.00019776,2]
[357295277,1743991843553,-564.7648,0.00019776,2]
[357295278,1743991843563,-494.85063381,0.00019786,2]
[357295279,1743991843572,-13594.5007,0.000198,2]
[357295280,1743991843582,-513.5537,0.000198,2]
[357295281,1743991843591,-910.6963,0.000198,2]
[357295282,1743991843611,-14300.0,0.000198,7]
[357295283,1743991843622,-203.0,0.00019863,2]
[357295284,1743991843632,-388.79,0.00019866,3]
[357295285,1743991843642,-30575.388248,0.00019876,2]
[357295286,1743991843652,-36055.9761,0.00019886,2]
[357295287,1743991843662,-1852.9809,0.000199,2]
[357295288,1743991843672,-9977.0601,0.000199,2]
[357295289,1743991843682,-158.7668737,0.000199,2]
[357295290,1743991843695,-163.33684435,0.000199,2]
[357295291,1743991843711,-19100.0,0.000199,7]
[357295292,1743991843721,-199.20594815,0.000199,2]
[357295293,1743991843731,-282.17011766,0.000199,2]
[357295294,1743991843741,-6221.16417182,0.000199,2]
[357295295,1743991843751,-561.79,0.00019924,2]
[357295296,1743991843761,-500.0,0.00019973,2]
[357295297,1743991843771,-502.62324193,0.00019973,2]
[357295298,1743991843781,-507.26821122,0.00019973,2]
[357295299,1743991843791,-26603.2716383,0.00019986,2]
[357295300,1743991843801,-311.90041094,0.00019999,2]
[357295301,1743991843810,-1177.34651498,0.00019999,5]
[357295302,1743991843820,-1177.34651498,0.00019999,5]
[357295303,1743991843830,-1177.34651498,0.00019999,5]
[357295304,1743991843840,-1719.06513996,0.00019999,5]
[357295305,1743991843850,-81635.25001731,0.0002,2]
[357295306,1743991844485,-571.72939449,0.0002,2]
[357295307,1743991844501,-55991.01210823,0.0002,2]
[357295309,1743991846223,-2757.42857678,0.0002,2]
[357295310,1743991846298,-2620.39095487,0.0002,2]
[357295311,1743991846399,-2073.71417265,0.0002,2]
[357295312,1743991846411,-1875.13997591,0.0002,2]
[357295313,1743991846422,-1086.1368,0.0002,2]
[357295314,1743991846433,-2222.34495376,0.0002,2]
[357295322,1743991846529,-1080.6411182,0.0002,2]
[357295361,1743991891460,355.59,0.00013699,2]
[357295362,1743991891830,355.59,0.00013699,2]
[357295363,1743991892169,355.59,0.00013699,2]
[357295364,1743991892559,355.59,0.00013699,2]
[357295365,1743991892921,355.59,0.00013699,2]
[357295366,1743991893253,355.59,0.00013699,2]
[357295367,1743991893894,355.59,0.00013699,2]
[357295368,1743991893947,355.59,0.00013699,2]
[357295369,1743991894238,355.59,0.00013699,2]
[357295370,1743991894634,355.59,0.00013699,2]
[357295371,1743991895036,355.59,0.00013699,2]
[357295372,1743991895414,355.59,0.00013699,2]
[357295373,1743991895911,355.59,0.00013699,2]
[357295374,1743991896228,355.59,0.00013699,2]
[357295375,1743991896545,355.59,0.00013699,2]
[357295376,1743991896885,355.59,0.00013699,2]
[357295377,1743991897249,355.59,0.00013699,2]
[357295378,1743991897657,355.59,0.00013699,2]
[357295379,1743991897987,355.59,0.00013699,2]
[357295380,1743991898307,355.70785878,0.00013699,2]
[357295381,1743992046704,200.0,0.00039446,30]
[357295382,1743992047408,207.4,0.00039446,30]
[357295383,1743992047980,215.0738,0.00039446,30]
[357295384,1743992048625,223.0315306,0.00039446,30]
[357295385,1743992049440,231.28369723,0.00039446,30]
[357295386,1743992049854,239.84119403,0.00039446,30]
[357295387,1743992050471,248.71531821,0.00039446,30]
[357295388,1743992051102,257.91778498,0.00039446,30]
[357295389,1743992051727,267.46074303,0.00039446,30]
[357295390,1743992052372,277.35679052,0.00039446,30]
[357295391,1743992053015,287.61899177,0.00039446,30]
[357295392,1743992053645,298.26089446,0.00039446,30]
[357295393,1743992054817,309.29654756,0.00039446,30]
[357295394,1743992055457,320.74051982,0.00039446,30]
[357295395,1743992056083,332.60791905,0.00039446,30]
[357295396,1743992057219,344.91441206,0.00039446,30]
[357295397,1743992057940,357.6762453,0.00039446,30]
[357295398,1743992058624,370.91026638,0.00039446,30]
[357295399,1743992060160,384.63394623,0.00039446,30]
[357295400,1743992060471,384.63394623,0.00039446,30]
[357295401,1743992105981,157.04,0.00025146,120]
[357295402,1743992106068,157.04,0.00030175,120]
[357295403,1743992114835,200.0,0.00039446,30]
[357295404,1743992115461,207.4,0.00039446,30]
[357295405,1743992116095,215.0738,0.00039446,30]
[357295406,1743992116835,223.0315306,0.00039446,30]
[357295407,1743992117391,231.28369723,0.00039446,30]
[357295408,1743992118084,239.84119403,0.00039446,30]
[357295409,1743992118752,248.71531821,0.00039446,30]
[357295410,1743992119401,257.91778498,0.00039446,30]
[357295411,1743992120027,267.46074303,0.00039446,30]
[357295412,1743992120656,277.35679052,0.00039446,30]
[357295413,1743992121333,287.61899177,0.00039446,30]
[357295414,1743992121983,298.26089446,0.00039446,30]
[357295415,1743992122682,309.29654756,0.00039446,30]
[357295416,1743992123247,320.74051982,0.00039446,30]
[357295417,1743992123903,332.60791905,0.00039446,30]
[357295418,1743992124627,344.91441206,0.00039446,30]
[357295419,1743992125300,357.6762453,0.00039446,30]
[357295420,1743992126053,370.91026638,0.00039446,30]
[357295421,1743992126689,384.63394623,0.00039446,30]
[357295422,1743992127327,384.63394623,0.00039446,30]
[357295423,1743992235847,200.0,0.00039446,30]
[357295424,1743992236485,207.4,0.00039446,30]
[357295425,1743992237122,215.0738,0.00039446,30]
[357295426,1743992237769,223.0315306,0.00039446,30]
[357295427,1743992238361,231.28369723,0.00039446,30]
[357295428,1743992239008,239.84119403,0.00039446,30]
[357295429,1743992239659,248.71531821,0.00039446,30]
[357295430,1743992240287,257.91778498,0.00039446,30]
[357295431,1743992240966,267.46074303,0.00039446,30]
[357295432,1743992241603,277.35679052,0.00039446,30]
[357295433,1743992242246,287.61899177,0.00039446,30]
[357295434,1743992242895,298.26089446,0.00039446,30]
[357295435,1743992243496,309.29654756,0.00039446,30]
[357295436,1743992244123,320.74051982,0.00039446,30]
[357295437,1743992244768,332.60791905,0.00039446,30]
[357295438,1743992245422,344.91441206,0.00039446,30]
[357295439,1743992246587,357.6762453,0.00039446,30]
[357295440,1743992247189,370.91026638,0.00039446,30]
[357295441,1743992247996,384.63394623,0.00039446,30]
[357295442,1743992248446,384.63394623,0.00039446,30]
[357295444,1743992318402,-200.0,0.00019552,7]
[357295445,1743992404871,302.5,0.00014782,2]
[357295446,1743992458067,249.04,0.00032932,120]
[357295447,1743992492011,499.54991903,0.0003,120]
[357295448,1743992492424,1468.55393229,0.00039654,60]
[357295455,1743992675916,303.95303444,0.00015,5]
[357295456,1743992715091,35484.83353049,0.00039654,30]
[357295457,1743992833750,275.84571091,0.0002301,120]
[357295472,1743992869072,150.0,0.00039654,30]
[357295473,1743992869310,156.87403327,0.00039654,120]
[357295474,1743992893256,313.09590003,0.00039654,30]
[357295483,1743992910939,-9895.43342067,0.00015,2]
[357295485,1743992911011,-9675.35786598,0.00015,2]
[357295488,1743992920668,650.28901528,0.00039654,30]
[357295489,1743992921922,205.5600427,0.0002736,120]
[357295492,1743992935951,-524.33354158,0.00014999,2]
[357295493,1743992935980,-9762.51570483,0.00015,2]
[357295494,1743992936017,-10286.84924641,0.00015,2]
[357295495,1743992936060,-4938.28006055,0.00015,2]
[357295499,1743992960574,-300.0,0.00014999,2]
[357295500,1743992960603,-10497.08881748,0.00015,2]
[357295501,1743992960639,-10699.96741171,0.00015,2]
[357295502,1743992987085,-11227.02994206,0.00015,2]
[357295503,1743992987138,-11227.02994206,0.00015,2]
[357295504,1743992987194,-1050.86107299,0.00015,2]
[357295505,1743993010556,-2239.8,0.0001499,2]
[357295506,1743993010585,-2239.8,0.0001499,2]
[357295507,1743993010614,-2239.8,0.0001499,2]
[357295508,1743993010645,-1445.2824345,0.0001499,2]
[357295509,1743993010738,-794.5175655,0.0001499,2]
[357295510,1743993010774,-2239.8,0.0001499,2]
[357295511,1743993010803,-2239.8,0.0001499,2]
[357295512,1743993010832,-2239.8,0.0001499,2]
[357295513,1743993010862,-2239.8,0.0001499,2]
[357295514,1743993010892,-300.0,0.00014999,2]
[357295515,1743993010921,-150.0,0.00014999,2]
[357295516,1743993010950,-250.0,0.00015,2]
[357295517,1743993010981,-1243.4107957,0.00015,2]
[357295524,1743993032220,-568.234,0.0001499,2]
[357295527,1743993032277,-7994.84750001,0.0001499,2]
[357295528,1743993032343,-890.35849999,0.0001499,2]
[357295529,1743993032353,-9453.44,0.0001499,2]
[357295530,1743993032363,-7037.52772929,0.00015,2]
[357295531,1743993032395,-742.90453805,0.00015,2]
[357295532,1743993032408,-661.75067429,0.00015,2]
[357295533,1743993032452,-59103.50109564,0.00015,2]
[357295565,1743993038392,-840.25358815,0.00015,2]
[357295566,1743993038412,-4467.24045872,0.00015,2]
[357295567,1743993038436,-15544.5200381,0.00015,2]
[357295568,1743993038448,-1416.61649412,0.00015,2]
[357295700,1743993040973,-286.27622548,0.00015,2]
[357295702,1743993040985,-1038.41468635,0.00015,2]
[357295710,1743993041046,-5470.22488,0.00015,2]
[357295773,1743993043908,-882946.64398126,0.00015,2]
[357295775,1743993043919,-203.0,0.00016124,2]